bitfinex/quotes_SOLUSD_20250721
["timestamp","ask_amount","ask_price","bid_price","bid_amount"]
[1753082127075,59.70675221,189.23,189.22,0.03]
[1753082127275,65.67132653,189.23,189.22,0.03]
[1753082129582,22.06925829,189.23,189.22,0.03]
[1753082129786,54.32468397,189.23,189.22,0.74]
[1753082130566,16.78468397,189.23,189.22,0.74]
[1753082130789,54.30468397,189.23,189.22,0.74]
[1753082131397,16.78468397,189.23,189.22,6.14206824]
[1753082131693,54.30468397,189.23,189.22,6.14206824]
[1753082132097,37.52,189.23,189.22,11.42692184]
[1753082132388,32.0902,189.31,189.22,11.42692184]
[1753082132389,16.78468397,189.3,189.22,11.42692184]
[1753082132595,37.52,189.29,189.27,5.40206824]
[1753082132901,54.30468397,189.29,189.28,0.71]
[1753082134287,54.30468397,189.29,189.28,9.54874606]
[1753082134496,16.78468397,189.29,189.28,9.54874606]
[1753082134804,37.5,189.29,189.28,14.83192442]
[1753082136484,16.78468397,189.36,189.28,14.83192442]
[1753082136693,54.28468397,189.35,189.34,8.83874606]
[1753082136897,54.28468397,189.35,189.34,9.54874606]
[1753082137392,39.51483895,189.41,189.34,9.54874606]
[1753082137589,39.51483895,189.41,189.3,1.5126]
[1753082137590,54.26468397,189.4,189.35,9.54874606]
[1753082137792,16.78468397,189.38,189.35,8.83874606]
[1753082138091,37.48,189.37,189.35,8.83874606]
[1753082138396,37.48,189.37,189.35,9.54874606]
[1753082139272,54.26468397,189.37,189.36,0.71]
[1753082139588,54.26468397,189.37,189.35,8.83874606]
[1753082140775,54.26468397,189.37,189.35,9.54874606]
[1753082141287,54.26468397,189.37,189.36,8.83874606]
[1753082142291,54.26468397,189.37,189.36,9.54874606]
[1753082142604,16.78468397,189.43,189.36,9.54874606]
[1753082142809,16.78468397,189.43,189.31,22.04449669]
[1753082142810,16.78468397,189.41,189.39,8.83874606]
[1753082142984,16.78468397,189.41,189.4,9.54874606]
[1753082143186,37.46,189.41,189.4,9.54874606]
[1753082143575,37.46,189.41,189.35,0.71]
[1753082143576,16.78468397,189.4,189.35,0.71]
[1753082143780,16.78468397,189.38,189.35,9.54874606]
[1753082143989,16.78468397,189.36,189.35,9.54874606]
[1753082145183,16.78468397,189.36,189.35,8.83874606]
[1753082146378,16.78468397,189.36,189.35,9.54874606]
[1753082150305,16.78468397,189.36,189.35,0.71]
[1753082150486,17.45468397,189.36,189.33,8.83874606]
[1753082150693,16.78468397,189.34,189.31,8.83874606]
[1753082150995,16.78468397,189.32,189.31,8.83874606]
[1753082151197,54.18468397,189.32,189.31,8.83874606]
[1753082151581,0.73,189.4,189.31,9.54874606]
[1753082151780,54.20468397,189.39,189.36,8.83874606]
[1753082153004,16.78468397,189.37,189.36,8.83874606]
[1753082153187,54.20468397,189.37,189.33,0.71]
[1753082153384,54.87468397,189.37,189.34,8.83874606]
[1753082154289,60.1554187,189.37,189.34,8.83874606]
[1753082155111,60.1554187,189.37,189.33,8.83874606]
[1753082155797,59.4854187,189.37,189.33,0.71]
[1753082156107,59.4854187,189.37,189.33,9.54874606]
[1753082156692,54.20468397,189.37,189.33,9.54874606]
[1753082156890,54.20468397,189.37,189.34,0.71]
[1753082157113,54.20468397,189.37,189.34,9.54874606]
[1753082159401,54.20468397,189.37,189.34,0.71]
[1753082159913,54.20468397,189.37,189.33,8.83874606]
[1753082160116,54.20468397,189.37,189.33,9.54874606]
[1753082160319,16.78468397,189.35,189.33,8.83874606]
[1753082160614,37.38,189.34,189.33,8.83874606]
[1753082161092,37.38,189.34,189.33,9.54874606]
[1753082161421,37.38,189.34,189.33,6.13032537]
[1753082164136,37.38,189.34,189.33,11.41210849]
[1753082165117,37.38,189.34,189.33,6.13032537]
[1753082165318,37.44,189.34,189.33,6.13032537]
[1753082165833,37.44,189.34,189.33,11.41210849]
[1753082167136,37.44,189.34,189.33,5.99178312]
[1753082167340,37.44,189.34,189.33,11.41210849]
[1753082169839,37.44,189.34,189.33,6.13032537]
[1753082170538,37.44,189.34,189.33,11.41210849]
[1753082171116,0.06,189.4,189.36,26.0]
[1753082171325,0.06,189.4,189.39,5.42032537]
[1753082171924,0.06,189.4,189.39,6.13032537]
[1753082172639,0.06,189.4,189.39,0.71]
[1753082172825,0.06,189.4,189.39,6.13032537]
[1753082173234,0.06,189.4,189.39,11.41043519]
[1753082183257,0.06,189.4,189.38,26.0]
[1753082183429,0.06,189.4,189.36,5.28070654]
[1753082183430,0.06,189.4,189.39,31.42032537]
[1753082185346,0.06,189.4,189.39,5.42032537]
[1753082188149,0.06,189.4,189.37,5.9406445]
[1753082188340,0.06,189.4,189.39,5.42032537]
[1753082190151,0.75,189.4,189.39,5.42032537]
[1753082190353,0.06,189.4,189.39,5.42032537]
[1753082191751,0.06,189.4,189.39,6.08032537]
[1753082192057,0.06,189.4,189.39,11.36043519]
[1753082192244,37.42,189.4,189.39,37.36043519]
[1753082193852,0.06,189.4,189.39,11.36043519]
[1753082194044,0.06,189.45,189.42,26.0]
[1753082194242,37.42,189.45,189.44,5.42032537]
[1753082194460,37.42,189.45,189.42,26.0]
[1753082194751,54.20468397,189.45,189.44,5.42032537]
[1753082194937,37.42,189.45,189.44,5.42032537]
[1753082197158,16.78468397,189.44,189.42,31.42032537]
[1753082197454,17.47468397,189.44,189.39,5.27988743]
[1753082197655,0.69,189.43,189.41,5.42032537]
[1753082197957,37.36,189.42,189.41,5.42032537]
[1753082198159,37.36,189.42,189.39,5.27988743]
[1753082198458,37.36,189.42,189.41,5.42032537]
[1753082201262,38.05,189.42,189.39,5.42032537]
[1753082202474,38.05,189.42,189.4,5.42032537]
[1753082203044,37.36,189.42,189.4,5.42032537]
[1753082204155,0.72,189.41,189.4,5.42032537]
[1753082204357,38.08,189.42,189.4,5.42032537]
[1753082205569,0.72,189.41,189.4,5.42032537]
[1753082205967,0.72,189.41,189.39,5.42032537]
[1753082206778,37.36,189.42,189.39,5.42032537]
[1753082206958,38.08,189.42,189.39,5.42032537]
[1753082207851,38.14,189.42,189.38,31.2803295]
[1753082208068,38.14,189.42,189.4,5.42032537]
[1753082209669,37.42,189.42,189.4,5.42032537]
[1753082209966,54.20468397,189.42,189.41,6.14032537]
[1753082210170,0.06,189.42,189.41,6.14032537]
[1753082210356,37.4,189.42,189.41,6.14032537]
[1753082211848,37.4,189.42,189.41,11.41987766]
[1753082213654,37.4,189.42,189.41,10.69987766]
[1753082213952,37.4,189.42,189.41,11.41987766]
[1753082215990,37.4,189.42,189.4,35.279794]
[1753082216149,37.4,189.42,189.41,5.42032537]
[1753082217273,37.4,189.42,189.41,11.41987766]
[1753082217654,0.06,189.42,189.41,11.41987766]
[1753082217858,37.4,189.42,189.41,11.41987766]
[1753082219458,0.06,189.42,189.41,11.41987766]
[1753082219864,0.06,189.45,189.43,26.0]
[1753082220056,0.06,189.45,189.44,11.56065074]
[1753082220483,0.06,189.45,189.44,6.14032537]
[1753082220895,0.06,189.45,189.44,0.72]
[1753082221071,0.06,189.45,189.44,32.14032537]
[1753082221270,0.06,189.45,189.44,37.41904158]
[1753082222188,0.06,189.45,189.44,31.99871621]
[1753082222361,0.06,189.45,189.44,42.83936695]
[1753082222566,0.06,189.46,189.44,16.83936695]
[1753082222766,0.06,189.46,189.45,36.84065074]
[1753082223057,0.06,189.46,189.45,11.56065074]
[1753082223584,0.06,189.46,189.45,16.83908832]
[1753082229380,0.06,189.46,189.45,42.83908832]
[1753082229700,0.06,189.46,189.45,16.83908832]
[1753082230790,0.06,189.46,189.45,42.83908832]
[1753082230971,0.06,189.46,189.45,42.11908832]
[1753082231169,0.06,189.46,189.45,36.69876295]
[1753082235775,0.06,189.46,189.45,37.36876295]
[1753082237077,16.78468397,189.51,189.45,37.36876295]
[1753082237078,1e-08,189.59,189.52,57.68]
[1753082237293,0.2,189.65,189.61,26.0]
[1753082237589,0.06,189.68,189.65,5.27287107]
[1753082237795,0.06,189.68,189.67,5.42032537]
[1753082237993,0.06,189.68,189.67,24.0301872]
[1753082238776,0.69,189.75,189.71,10.84065074]
[1753082238978,6.2412,189.77,189.74,5.42032537]
[1753082239289,6.2412,189.77,189.76,5.42032537]
[1753082239584,23.02588397,189.77,189.76,5.42032537]
[1753082239789,23.71588397,189.77,189.76,5.42032537]
[1753082240088,61.39588397,189.77,189.76,4.92032537]
[1753082240265,16.78468397,189.76,189.72,5.42032537]
[1753082240468,16.78468397,189.74,189.71,5.42032537]
[1753082240676,16.78468397,189.74,189.63,5.42032537]
[1753082240677,0.69,189.73,189.63,5.42032537]
[1753082240871,16.78468397,189.71,189.69,5.42032537]
[1753082241285,17.47468397,189.7,189.69,5.42032537]
[1753082241692,17.47468397,189.7,189.63,5.42032537]
[1753082241882,17.47468397,189.7,189.68,5.42032537]
[1753082242188,0.69,189.69,189.68,5.42032537]
[1753082242393,0.69,189.69,189.68,8.01852653]
[1753082242774,0.69,189.69,189.68,2.59820116]
[1753082242976,0.69,189.69,189.68,5.42032537]
[1753082245188,16.78468397,189.68,189.67,5.42032537]
[1753082245383,55.15468397,189.68,189.67,5.42032537]
[1753082246297,55.15468397,189.68,189.62,26.67]
[1753082246502,60.42672108,189.68,189.67,5.42032537]
[1753082247699,16.78468397,189.67,189.62,26.0]
[1753082247874,16.78468397,189.67,189.56,157.43651314]
[1753082247875,16.78468397,189.65,189.64,5.42032537]
[1753082248075,15.79621558,189.65,189.64,5.42032537]
[1753082248599,15.79621558,189.65,189.64,8.0854511]
[1753082249922,21.06908665,189.65,189.64,8.0854511]
[1753082252099,58.70908665,189.65,189.64,8.0854511]
[1753082254984,58.01908665,189.65,189.64,8.0854511]
[1753082255393,52.74621558,189.65,189.64,8.0854511]
[1753082257308,58.70908665,189.65,189.64,8.0854511]
[1753082258109,53.43621558,189.65,189.64,8.0854511]
[1753082259293,58.70908665,189.65,189.64,2.66512573]
[1753082259504,58.70908665,189.65,189.63,5.42032537]
[1753082259814,0.69,189.64,189.63,5.42032537]
[1753082260505,0.69,189.64,189.59,31.94452754]
[1753082260506,0.69,189.64,189.62,5.42032537]
[1753082260808,16.78468397,189.65,189.63,5.42032537]
[1753082261005,37.56,189.64,189.63,0.67]
[1753082261198,37.56,189.64,189.61,0.67]
[1753082261512,37.56,189.64,189.63,5.42032537]
[1753082261741,38.25,189.64,189.63,5.42032537]
[1753082262196,60.30783309,189.64,189.63,5.42032537]
[1753082263511,55.03468397,189.64,189.63,5.42032537]
[1753082264115,60.30783309,189.64,189.63,5.42032537]
[1753082264412,16.78468397,189.63,189.62,5.42032537]
[1753082264602,17.49468397,189.63,189.62,5.42032537]
[1753082266205,22.76811698,189.63,189.59,2.65381029]
[1753082266404,55.01468397,189.62,189.61,5.42032537]
[1753082267212,55.01468397,189.62,189.6,5.42032537]
[1753082267392,54.30468397,189.62,189.6,5.42032537]
[1753082267594,0.71,189.61,189.6,5.42032537]
[1753082269896,54.30468397,189.62,189.6,5.42032537]
[1753082270117,54.30468397,189.62,189.61,5.42032537]
[1753082270702,55.01468397,189.62,189.61,5.42032537]
[1753082271217,55.01468397,189.62,189.6,5.42032537]
[1753082271430,60.28841983,189.62,189.6,5.42032537]
[1753082271603,0.71,189.61,189.6,5.42032537]
[1753082271802,54.30468397,189.62,189.6,5.42032537]
[1753082272029,55.01468397,189.62,189.61,5.42032537]
[1753082272205,54.30468397,189.62,189.61,5.42032537]
[1753082274735,55.01468397,189.62,189.61,5.42032537]
[1753082276304,54.30468397,189.62,189.61,5.42032537]
[1753082276535,54.30468397,189.62,189.61,6.14032537]
[1753082276758,55.01468397,189.62,189.61,5.42032537]
[1753082277031,60.28838927,189.62,189.61,5.42032537]
[1753082277202,55.01468397,189.62,189.61,5.42032537]
[1753082277845,54.30468397,189.62,189.61,5.42032537]
[1753082281217,54.30468397,189.62,189.6,0.03]
[1753082281437,54.30468397,189.62,189.61,5.42032537]
[1753082281633,55.01468397,189.62,189.61,5.42032537]
[1753082281820,55.01468397,189.62,189.6,0.03]
[1753082282130,17.49468397,189.61,189.6,0.03]
[1753082283213,22.7686674,189.61,189.6,0.03]
[1753082283935,17.49468397,189.61,189.6,0.03]
[1753082284343,22.7686674,189.61,189.6,0.03]
[1753082285018,29.76669277,189.61,189.6,0.03]
[1753082285413,16.78468397,189.59,189.58,0.03]
[1753082285638,54.14468397,189.59,189.58,0.03]
[1753082286214,0.71,189.63,189.58,6.17032537]
[1753082286411,54.16468397,189.62,189.61,5.42032537]
[1753082286839,54.87468397,189.62,189.58,0.03]
[1753082287117,0.71,189.61,189.59,5.42032537]
[1753082287428,54.89468397,189.6,189.59,5.42032537]
[1753082287816,54.18468397,189.6,189.59,5.92032537]
[1753082290236,54.18468397,189.6,189.59,0.5]
[1753082290237,61.89518397,189.6,189.59,0.5]
[1753082290445,61.89518397,189.6,189.45,0.03]
[1753082290446,16.78468397,189.53,189.45,0.03]
[1753082290628,59.66500934,189.53,189.45,0.03]
[1753082290831,60.37500934,189.53,189.45,0.03]
[1753082292342,65.65121891,189.53,189.45,0.03]
[1753082294633,78.84174283,189.53,189.45,0.03]
[1753082294828,16.78468397,189.46,189.45,0.03]
[1753082295036,59.94500934,189.46,189.45,0.03]
[1753082295242,60.62500934,189.46,189.45,0.03]
[1753082297041,65.90316831,189.46,189.45,0.03]
[1753082297843,55.20468397,189.46,189.45,0.03]
[1753082298452,60.62500934,189.46,189.45,0.03]
[1753082298754,59.94500934,189.46,189.45,0.03]
[1753082299326,54.52468397,189.46,189.45,0.03]
[1753082302435,54.46468397,189.46,189.45,0.73]
[1753082304561,16.78468397,189.46,189.45,0.73]
[1753082304767,54.46468397,189.46,189.45,0.73]
[1753082305062,54.44468397,189.46,189.45,0.03]
[1753082305766,60.40284294,189.46,189.45,0.03]
[1753082305978,65.82316831,189.46,189.45,0.03]
[1753082306351,60.40284294,189.46,189.45,0.03]
[1753082306952,16.78468397,189.46,189.45,6.15032537]
[1753082307248,0.68,189.53,189.45,6.15032537]
[1753082307447,54.44468397,189.52,189.48,5.42032537]
[1753082307756,16.78468397,189.5,189.47,5.42032537]
[1753082307965,37.66,189.49,189.46,6.12032537]
[1753082308266,37.66,189.49,189.46,5.42032537]
[1753082308561,16.78468397,189.48,189.46,5.42032537]
[1753082308768,54.44468397,189.47,189.46,5.42032537]
[1753082309744,37.66,189.47,189.46,0.7]
[1753082309949,16.78468397,189.52,189.46,11.39848434]
[1753082310162,16.78468397,189.5,189.47,0.7]
[1753082310366,54.40468397,189.49,189.48,6.12032537]
[1753082312167,7.7105,189.54,189.48,11.39787618]
[1753082312355,5.82032537,189.58,189.52,5.42032537]
[1753082312560,60.3598499,189.57,189.53,5.42032537]
[1753082312752,37.62,189.56,189.53,6.12032537]
[1753082312954,37.62,189.56,189.53,0.7]
[1753082313259,37.62,189.56,189.53,6.12032537]
[1753082313865,37.68,189.56,189.53,6.12032537]
[1753082314949,16.78468397,189.54,189.5,0.7]
[1753082315250,37.62,189.53,189.51,5.42032537]
[1753082316562,37.62,189.53,189.51,11.39707658]
[1753082317668,37.62,189.53,189.51,6.12032537]
[1753082317876,37.62,189.53,189.51,5.42032537]
[1753082319971,37.62,189.53,189.49,5.97727477]
[1753082320279,38.3,189.53,189.5,5.42032537]
[1753082320478,0.68,189.52,189.5,5.42032537]
[1753082320770,0.68,189.52,189.49,5.27727477]
[1753082320771,37.54,189.51,189.49,5.42032537]
[1753082321959,37.54,189.51,189.47,5.97786451]
[1753082321960,38.22,189.51,189.47,5.97786451]
[1753082322281,38.22,189.51,189.48,5.42032537]
[1753082323563,0.67,189.5,189.46,5.27809404]
[1753082323874,37.52,189.49,189.47,5.42032537]
[1753082324251,37.52,189.49,189.46,5.97809404]
[1753082324450,37.52,189.49,189.47,5.42032537]
[1753082325074,37.52,189.49,189.46,5.97809404]
[1753082325375,37.52,189.49,189.47,5.42032537]
[1753082326255,37.52,189.49,189.47,10.69819007]
[1753082326662,37.52,189.49,189.48,5.42032537]
[1753082327454,38.19,189.49,189.46,5.2780969]
[1753082327654,38.19,189.49,189.47,5.42032537]
[1753082327875,37.52,189.49,189.47,5.42032537]
[1753082328876,37.52,189.49,189.47,10.69818065]
[1753082329069,0.4,189.58,189.48,6.12032537]
[1753082329070,0.67,189.54,189.48,6.12032537]
[1753082329271,16.78468397,189.55,189.52,5.42032537]
[1753082329462,37.46,189.54,189.52,5.42032537]
[1753082329778,37.46,189.54,189.52,6.12032537]
[1753082330980,37.46,189.54,189.53,6.12032537]
[1753082331367,0.06,189.56,189.53,6.12032537]
[1753082331675,37.46,189.55,189.54,6.12032537]
[1753082331878,37.46,189.55,189.52,5.27645612]
[1753082332183,37.46,189.55,189.53,5.42032537]
[1753082334877,37.46,189.55,189.53,10.69646448]
[1753082335575,37.46,189.55,189.54,6.12032537]
[1753082336766,37.46,189.55,189.54,5.42032537]
[1753082337071,37.46,189.55,189.54,10.69625657]
[1753082337265,37.46,189.55,189.54,11.39625657]
[1753082337472,37.4,189.55,189.54,11.39625657]
[1753082343986,37.4,189.55,189.54,10.69625657]
[1753082344195,37.4,189.55,189.51,26.7]
[1753082344396,38.07,189.55,189.53,5.42032537]
[1753082344577,38.07,189.55,189.51,0.7]
[1753082344896,38.07,189.55,189.53,5.42032537]
[1753082345065,38.07,189.55,189.52,5.27648796]
[1753082345270,38.07,189.55,189.53,5.42032537]
[1753082346089,37.4,189.55,189.53,10.69628743]
[1753082346292,0.06,189.56,189.54,5.42032537]
[1753082346494,0.06,189.56,189.55,5.42032537]
[1753082346691,37.42,189.56,189.55,5.42032537]
[1753082348683,38.09,189.56,189.54,5.42032537]
[1753082348869,0.67,189.55,189.54,5.42032537]
[1753082349999,16.78468397,189.54,189.48,0.7]
[1753082350173,16.78468397,189.54,189.45,1.6271]
[1753082350174,37.36,189.53,189.49,5.42032537]
[1753082350375,0.67,189.52,189.49,5.42032537]
[1753082350574,37.36,189.51,189.49,5.42032537]
[1753082350798,38.03,189.51,189.49,5.42032537]
[1753082352383,38.03,189.51,189.49,10.69751302]
[1753082354203,38.03,189.51,189.49,5.27718765]
[1753082354413,38.03,189.51,189.49,10.69751302]
[1753082355117,38.04,189.51,189.49,10.69751302]
[1753082355288,38.04,189.51,189.49,5.27718765]
[1753082355489,38.04,189.51,189.49,10.69751302]
[1753082355703,37.36,189.51,189.49,5.27718765]
[1753082355908,38.04,189.51,189.49,5.27718765]
[1753082356200,38.04,189.51,189.49,10.69751302]
[1753082356406,0.68,189.5,189.49,10.69751302]
[1753082357692,0.68,189.5,189.47,31.42032537]
[1753082357889,38.04,189.49,189.47,5.42032537]
[1753082359214,0.68,189.48,189.47,5.42032537]
[1753082359415,0.68,189.48,189.46,26.0]
[1753082359416,0.68,189.48,189.46,36.69843749]
[1753082359710,37.36,189.47,189.46,36.69843749]
[1753082361815,37.36,189.47,189.46,31.42032537]
[1753082361986,37.36,189.47,189.46,26.0]
[1753082362186,38.04,189.47,189.46,26.0]
[1753082362413,38.04,189.47,189.45,5.45032537]
[1753082362913,0.68,189.46,189.45,5.45032537]
[1753082363619,0.68,189.46,189.45,0.03]
[1753082363816,17.46468397,189.46,189.45,0.03]
[1753082365902,37.36,189.47,189.45,0.03]
[1753082366503,38.04,189.47,189.45,0.03]
[1753082368510,0.68,189.46,189.45,0.03]
[1753082370296,37.36,189.47,189.45,0.03]
[1753082370497,0.68,189.46,189.45,0.03]
[1753082371512,17.46468397,189.46,189.45,0.03]
[1753082374194,54.84468397,189.46,189.45,0.03]
[1753082376008,60.12284294,189.46,189.45,0.03]
[1753082376421,54.84468397,189.46,189.45,0.03]
[1753082377824,54.16468397,189.46,189.45,0.03]
[1753082378527,37.38,189.46,189.45,0.03]
[1753082379029,37.38,189.46,189.45,0.75]
[1753082379346,37.38,189.46,189.45,6.17032537]
[1753082379827,37.38,189.46,189.45,0.03]
[1753082380026,38.06,189.46,189.45,0.03]
[1753082380323,37.38,189.46,189.45,0.03]
[1753082383314,22.92378397,189.49,189.45,0.03]
[1753082383520,16.78468397,189.51,189.48,5.42032537]
[1753082383819,38.08,189.5,189.46,6.14032537]
[1753082384400,38.08,189.5,189.46,11.41824367]
[1753082384611,37.36,189.49,189.47,6.14032537]
[1753082384902,37.36,189.49,189.48,5.42032537]
[1753082385105,37.36,189.49,189.48,6.14032537]
[1753082387527,37.36,189.49,189.48,11.41792722]
[1753082391240,37.36,189.5,189.48,11.41792722]
[1753082391426,37.36,189.5,189.49,5.42032537]
[1753082391627,37.36,189.5,189.49,6.14032537]
[1753082392153,37.36,189.5,189.49,11.41764871]
[1753082392353,0.06,189.52,189.49,11.41764871]
[1753082392646,37.36,189.51,189.5,6.14032537]
[1753082392847,37.36,189.51,189.5,5.42032537]
[1753082393049,0.06,189.52,189.5,37.41721006]
[1753082393227,0.06,189.52,189.51,6.14032537]
[1753082393640,0.06,189.55,189.54,26.0]
[1753082393947,0.06,189.55,189.54,36.84065074]
[1753082394145,0.06,189.55,189.54,37.56065074]
[1753082395754,0.06,189.55,189.54,42.83658194]
[1753082399056,0.06,189.56,189.54,42.83658194]
[1753082399248,0.06,189.59,189.58,31.42032537]
[1753082399763,0.06,189.59,189.58,32.14032537]
[1753082401158,0.06,189.59,189.58,40.09442746]
[1753082401563,0.06,189.59,189.58,14.09442746]
[1753082403157,0.78,189.59,189.58,8.09960945]
[1753082403357,0.78,189.59,189.58,5.42032537]
[1753082403946,0.78,189.59,189.57,5.42032537]
[1753082405158,0.78,189.59,189.56,5.42032537]
[1753082405434,54.10468397,189.58,189.56,5.42032537]
[1753082405638,0.72,189.57,189.56,5.42032537]
[1753082406355,37.38,189.59,189.56,8.7170814]
[1753082406637,37.38,189.59,189.58,5.42032537]
[1753082406833,38.1,189.59,189.58,5.42032537]
[1753082409245,38.1,189.59,189.57,5.42032537]
[1753082409573,0.72,189.58,189.57,5.42032537]
[1753082410463,0.72,189.58,189.55,31.27559712]
[1753082410646,0.72,189.58,189.57,5.42032537]
[1753082411053,37.38,189.59,189.57,5.42032537]
[1753082411248,37.38,189.59,189.58,5.42032537]
[1753082411564,38.1,189.59,189.58,5.42032537]
[1753082414165,38.1,189.59,189.57,5.42032537]
[1753082414663,37.38,189.59,189.57,5.42032537]
[1753082414863,0.72,189.58,189.57,5.42032537]
[1753082419048,0.06,189.68,189.63,48.45468397]
[1753082419359,0.06,189.68,189.66,31.42032537]
[1753082419957,0.06,189.68,189.66,32.13032537]
[1753082421055,0.06,189.68,189.66,37.40291843]
[1753082421278,0.06,189.68,189.66,31.98259306]
[1753082421473,0.06,189.68,189.66,37.40291843]
[1753082421852,1e-08,189.69,189.66,46.00708222]
[1753082422155,0.1,189.71,189.7,26.0]
[1753082422354,0.1,189.71,189.7,31.42032537]
[1753082422554,0.1,189.71,189.7,32.13032537]
[1753082422987,0.1,189.71,189.7,37.40180665]
[1753082423154,0.1,189.71,189.7,36.69180665]
[1753082423559,0.1,189.71,189.7,37.40180665]
[1753082423882,0.1,189.71,189.7,36.69180665]
[1753082424258,0.1,189.71,189.7,36.8901944]
[1753082425378,37.6,189.71,189.7,36.8901944]
[1753082425754,37.6,189.71,189.7,31.61871312]
[1753082425951,37.6,189.71,189.7,5.61871312]
[1753082426473,37.6,189.71,189.7,0.19838775]
[1753082426785,61.47458397,189.71,189.7,0.19838775]
[1753082427486,0.06,189.75,189.74,74.45468397]
[1753082427687,0.06,189.75,189.74,32.65736236]
[1753082427872,0.06,189.75,189.74,32.13032537]
[1753082428052,20.0,189.92,189.74,0.19103722]
[1753082428257,0.72,189.77,189.76,10.0]
[1753082428452,38.6,189.77,189.76,10.0]
[1753082428675,37.9,189.81,189.78,10.0]
[1753082428855,38.62,189.81,189.8,10.0]
[1753082429055,0.72,189.81,189.8,10.0]
[1753082429364,38.62,189.81,189.79,10.0]
[1753082430276,38.62,189.81,189.8,10.0]
[1753082430576,16.78468397,189.8,189.79,10.0]
[1753082430779,22.20500934,189.8,189.75,10.0]
[1753082431078,38.6,189.79,189.77,15.42032537]
[1753082431378,54.66468397,189.79,189.78,10.0]
[1753082431575,54.66468397,189.79,189.74,0.19103722]
[1753082431576,54.66468397,189.79,189.77,10.0]
[1753082431776,54.66468397,189.79,189.78,18.92842244]
[1753082431984,59.93366547,189.79,189.78,10.52366875]
[1753082432169,22.05366547,189.79,189.78,0.52366875]
[1753082432364,59.95366547,189.79,189.78,0.52366875]
[1753082432577,60.67366547,189.79,189.78,0.52366875]
[1753082433996,66.07399084,189.79,189.78,0.52366875]
[1753082434180,60.65366547,189.79,189.78,0.52366875]
[1753082434688,66.07399084,189.79,189.78,0.52366875]
[1753082435575,60.65366547,189.79,189.78,0.52366875]
[1753082435778,66.07399084,189.79,189.78,1e-08]
[1753082435976,16.78468397,189.75,189.69,10.0]
[1753082436172,22.20500934,189.73,189.7,0.53705016]
[1753082436393,16.78468397,189.73,189.7,0.53705016]
[1753082436576,0.72,189.72,189.7,0.53705016]
[1753082436784,38.6,189.71,189.7,0.53705016]
[1753082437487,60.65588738,189.71,189.7,0.53705016]
[1753082437697,60.65588738,189.71,189.63,10.0]
[1753082437698,16.78468397,189.7,189.63,10.0]
[1753082437884,16.78468397,189.63,189.6,10.0]
[1753082438072,16.78468397,189.63,189.57,5.42032537]
[1753082438073,16.78468397,189.63,189.62,10.0]
[1753082438279,54.68468397,189.63,189.62,10.0]
[1753082438463,60.10500934,189.63,189.62,10.0]
[1753082438670,60.82500934,189.63,189.62,10.0]
[1753082438869,55.40468397,189.63,189.62,10.0]
[1753082439100,55.40468397,189.63,189.62,36.0]
[1753082439411,17.50468397,189.63,189.59,10.0]
[1753082439569,16.78468397,189.63,189.62,10.0]
[1753082439774,55.38468397,189.63,189.62,10.0]
[1753082439982,55.36468397,189.63,189.62,10.0]
[1753082440388,17.50468397,189.63,189.59,10.0]
[1753082440688,38.6,189.62,189.61,36.0]
[1753082440894,38.6,189.62,189.61,26.0]
[1753082441787,38.6,189.62,189.59,10.0]
[1753082442091,37.84,189.61,189.6,10.0]
[1753082442299,38.56,189.61,189.6,10.0]
[1753082443713,0.68,189.65,189.62,10.0]
[1753082444007,37.86,189.64,189.62,10.0]
[1753082444392,0.68,189.63,189.61,5.42032537]
[1753082444704,37.86,189.64,189.62,10.0]
[1753082445003,16.78468397,189.63,189.6,15.42032537]